bitfinex/quotes_BTCUSD_20240918
["timestamp","ask_amount","ask_price","bid_price","bid_amount"]
[1726702109156,0.67244286,61360.0,61359.0,0.11176295]
[1726702109598,1.15054016,61360.0,61359.0,0.11176295]
[1726702109824,1.12054016,61360.0,61359.0,0.11176295]
[1726702110046,1.15054016,61360.0,61359.0,0.11176295]
[1726702110268,1.02838786,61360.0,61359.0,0.11176295]
[1726702112523,0.67244286,61360.0,61359.0,0.11176295]
[1726702112733,0.99838786,61360.0,61359.0,0.11176295]
[1726702113151,0.67244286,61360.0,61359.0,0.11176295]
[1726702113990,0.34649786,61360.0,61359.0,0.11176295]
[1726702114217,0.18352586,61360.0,61359.0,0.27473795]
[1726702114428,0.20572718,61360.0,61359.0,0.11176295]
[1726702114637,0.15684231,61360.0,61359.0,0.11176295]
[1726702115067,0.08352586,61360.0,61359.0,0.27473795]
[1726702115288,0.08352586,61360.0,61359.0,0.60068795]
[1726702115289,0.05794562,61360.0,61359.0,0.60068795]
[1726702116143,0.05794562,61360.0,61359.0,1.28458795]
[1726702116384,0.007822,61360.0,61359.0,1.31734795]
[1726702116596,0.000822,61360.0,61359.0,1.31634795]
[1726702117103,0.000822,61360.0,61359.0,1.31734795]
[1726702117104,0.006822,61360.0,61359.0,1.31734795]
[1726702117314,0.000822,61360.0,61359.0,1.31634795]
[1726702117538,0.001822,61360.0,61359.0,1.33034795]
[1726702117750,0.001822,61360.0,61359.0,1.31634795]
[1726702118178,0.002822,61360.0,61359.0,1.33034795]
[1726702118409,0.0032687,61373.0,61372.0,0.19494]
[1726702118628,0.0032687,61373.0,61372.0,1.79824021]
[1726702118845,0.0032687,61373.0,61372.0,2.12412121]
[1726702119063,0.0032687,61373.0,61372.0,2.45000221]
[1726702119286,0.0032687,61373.0,61372.0,2.12412121]
[1726702119501,0.0032687,61373.0,61372.0,2.25202121]
[1726702120177,0.0032687,61373.0,61372.0,2.26602121]
[1726702120628,0.97786402,61379.0,61378.0,0.816622]
[1726702120844,0.015,61383.0,61382.0,0.521502]
[1726702121131,0.015,61383.0,61382.0,2.071698]
[1726702121375,0.6,61391.0,61389.0,0.162895]
[1726702121593,0.6,61391.0,61389.0,1.71622458]
[1726702121814,0.6,61391.0,61389.0,2.210958]
[1726702122687,0.3587,61391.0,61390.0,1.205007]
[1726702122899,0.3587,61391.0,61390.0,2.073487]
[1726702123768,0.3587,61391.0,61390.0,2.086487]
[1726702124211,0.3587,61391.0,61390.0,2.073487]
[1726702124437,0.3587,61391.0,61390.0,2.087487]
[1726702124891,0.3587,61391.0,61390.0,1.403917]
[1726702125129,0.3587,61391.0,61390.0,0.89648]
[1726702125130,0.52159,61391.0,61390.0,0.89648]
[1726702125343,1.17315,61391.0,61390.0,0.89648]
[1726702125558,0.84737,61391.0,61390.0,0.89648]
[1726702125785,1.17315,61391.0,61390.0,0.89638]
[1726702126001,1.17315,61391.0,61390.0,0.89628]
[1726702126002,1.27315,61391.0,61390.0,0.89628]
[1726702126250,1.59893,61391.0,61390.0,0.89628]
[1726702126475,1.59893,61391.0,61390.0,0.86828]
[1726702126696,2.695048,61391.0,61390.0,0.88018]
[1726702126906,2.117688,61391.0,61390.0,0.86818]
[1726702127138,2.140688,61391.0,61390.0,0.86818]
[1726702127350,2.140688,61391.0,61390.0,0.87018]
[1726702127650,2.140688,61391.0,61390.0,0.86808]
[1726702127873,2.663368,61391.0,61390.0,0.86908]
[1726702128012,2.337588,61391.0,61390.0,0.86808]
[1726702128233,1.980474,61391.0,61390.0,0.86808]
[1726702129029,1.981298,61391.0,61390.0,0.86808]
[1726702129263,1.981298,61391.0,61390.0,0.86908]
[1726702129697,1.981298,61391.0,61390.0,0.86808]
[1726702129927,1.958298,61391.0,61390.0,0.86908]
[1726702130180,1.796654,61391.0,61390.0,0.86808]
[1726702130402,2.068316,61391.0,61390.0,0.86908]
[1726702130842,1.796654,61391.0,61390.0,0.86908]
[1726702131043,1.440874,61391.0,61390.0,0.86908]
[1726702131241,1.741336,61391.0,61390.0,0.86908]
[1726702131693,1.440874,61391.0,61390.0,0.86908]
[1726702131907,1.14066111,61391.0,61390.0,0.86908]
[1726702132306,1.46644111,61391.0,61390.0,0.86808]
[1726702132706,1.46644111,61391.0,61390.0,0.86908]
[1726702133078,1.46644111,61391.0,61390.0,0.86808]
[1726702133275,1.46644111,61391.0,61390.0,0.86908]
[1726702134218,0.38509111,61391.0,61390.0,0.86908]
[1726702135176,0.359524,61391.0,61390.0,0.86908]
[1726702135842,0.359524,61391.0,61390.0,1.031972]
[1726702136064,0.522414,61391.0,61390.0,0.86908]
[1726702136313,0.359524,61391.0,61390.0,0.86808]
[1726702136580,0.359524,61391.0,61390.0,0.86908]
[1726702136800,0.359524,61391.0,61390.0,0.86808]
[1726702136997,0.38508773,61391.0,61390.0,0.86808]
[1726702137201,0.38508773,61391.0,61390.0,0.87008]
[1726702137403,0.54797773,61391.0,61390.0,0.87008]
[1726702137605,0.359524,61391.0,61390.0,0.87008]
[1726702137855,0.359524,61391.0,61390.0,1.032972]
[1726702138065,0.359524,61391.0,61390.0,0.87008]
[1726702138282,0.359524,61391.0,61390.0,1.032972]
[1726702138497,0.359524,61391.0,61390.0,1.358757]
[1726702138931,0.359524,61391.0,61390.0,1.032972]
[1726702139140,0.359524,61391.0,61390.0,0.87008]
[1726702139346,0.38508753,61391.0,61390.0,0.87008]
[1726702139560,0.359524,61391.0,61390.0,0.87008]
[1726702139756,0.38508767,61391.0,61390.0,0.87008]
[1726702139959,0.38508767,61391.0,61390.0,1.032972]
[1726702140185,0.38508767,61391.0,61390.0,0.87008]
[1726702140793,0.359524,61391.0,61390.0,0.87008]
[1726702142013,0.359524,61391.0,61390.0,0.871726]
[1726702142440,0.38508769,61391.0,61390.0,0.871726]
[1726702143281,0.87375769,61391.0,61390.0,0.871726]
[1726702143486,2.71877369,61391.0,61390.0,0.871726]
[1726702143690,2.46857669,61391.0,61390.0,0.871726]
[1726702143898,2.04181769,61391.0,61390.0,0.871726]
[1726702144102,2.21287953,61391.0,61390.0,0.871726]
[1726702144312,2.37596511,61391.0,61390.0,0.871726]
[1726702144713,2.42603817,61391.0,61390.0,0.871726]
[1726702144924,2.26295259,61391.0,61390.0,0.871726]
[1726702145573,3.71956659,61391.0,61390.0,0.869626]
[1726702145779,3.71956659,61391.0,61390.0,0.869526]
[1726702146001,3.71956659,61391.0,61390.0,0.870526]
[1726702147678,3.88265217,61391.0,61390.0,0.870426]
[1726702148517,3.88265217,61391.0,61390.0,0.5641829]
[1726702148721,3.88265217,61391.0,61390.0,0.5631829]
[1726702148933,3.71956659,61391.0,61390.0,0.5631829]
[1726702149136,3.71956659,61391.0,61390.0,0.5641829]
[1726702149315,3.71956659,61391.0,61390.0,0.5631829]
[1726702149547,3.59709873,61391.0,61390.0,0.5631829]
[1726702149748,3.91565415,61391.0,61390.0,0.5641829]
[1726702150153,3.75256857,61391.0,61390.0,0.5641829]
[1726702150384,3.36858257,61391.0,61390.0,0.5641829]
[1726702150601,3.31998859,61391.0,61390.0,0.5641829]
[1726702150805,2.90565659,61391.0,61390.0,0.5641829]
[1726702151209,2.95426722,61391.0,61390.0,0.5641829]
[1726702151410,3.1173528,61391.0,61390.0,0.5641829]
[1726702152174,3.06874217,61391.0,61390.0,0.5641829]
[1726702153331,3.06874217,61391.0,61359.0,0.493989]
[1726702153332,0.325923,61365.0,61361.0,0.03276]
[1726702153544,0.325923,61365.0,61361.0,0.03266]
[1726702153753,0.1277,61376.0,61362.0,0.48889]
[1726702153754,0.65995484,61363.0,61362.0,0.48889]
[1726702154404,0.98588384,61363.0,61362.0,0.48889]
[1726702154612,0.814822,61363.0,61362.0,0.48889]
[1726702154826,0.98588384,61363.0,61362.0,0.48889]
[1726702155471,1.31181284,61363.0,61362.0,0.48889]
[1726702155707,1.31181284,61363.0,61362.0,0.48879]
[1726702155930,1.31181284,61363.0,61362.0,0.49279]
[1726702156135,1.47489842,61363.0,61362.0,0.49279]
[1726702156346,1.31181284,61363.0,61362.0,0.49279]
[1726702156574,1.31181284,61363.0,61362.0,0.48879]
[1726702156995,1.31981284,61363.0,61362.0,0.48979]
[1726702157424,0.008,61363.0,61362.0,0.48979]
[1726702157646,0.333929,61363.0,61362.0,0.48979]
[1726702157885,0.496893,61363.0,61362.0,0.48979]
[1726702158328,0.170964,61363.0,61362.0,0.48899]
[1726702158949,0.488893,61363.0,61362.0,0.48799]
[1726702159186,0.495893,61363.0,61362.0,0.48899]
[1726702159414,0.495893,61363.0,61362.0,0.48799]
[1726702159825,0.500893,61363.0,61362.0,0.48799]
[1726702160021,0.493893,61363.0,61362.0,0.48799]
[1726702161506,0.493893,61363.0,61362.0,0.48789]
[1726702162191,0.488893,61363.0,61362.0,0.48789]
[1726702162424,0.488893,61363.0,61362.0,0.48889]
[1726702162662,0.488893,61363.0,61362.0,0.48789]
[1726702163107,0.488893,61363.0,61362.0,0.48889]
[1726702163322,0.488893,61363.0,61362.0,0.48789]
[1726702163555,0.488893,61363.0,61362.0,0.48889]
[1726702163809,0.488893,61363.0,61362.0,0.48789]
[1726702164266,0.162964,61363.0,61362.0,0.48789]
[1726702164958,0.488893,61363.0,61362.0,0.48789]
[1726702165183,0.488893,61363.0,61362.0,0.48889]
[1726702165410,0.488893,61363.0,61362.0,0.48789]
[1726702165672,0.488893,61363.0,61362.0,0.48989]
[1726702165886,0.488893,61363.0,61362.0,0.48789]
[1726702166095,0.488893,61363.0,61362.0,0.489536]
[1726702166308,0.488893,61363.0,61362.0,0.491536]
[1726702166537,0.814822,61363.0,61362.0,0.489536]
[1726702167168,0.94145291,61363.0,61362.0,0.489436]
[1726702167380,0.814822,61363.0,61362.0,0.491436]
[1726702168649,0.814822,61363.0,61362.0,0.489436]
[1726702168863,1.140751,61363.0,61362.0,0.489436]
[1726702169082,1.140751,61363.0,61362.0,0.491336]
[1726702169764,1.140751,61363.0,61362.0,0.489336]
[1726702170605,1.144751,61363.0,61362.0,0.489336]
[1726702172097,1.17425136,61363.0,61362.0,0.489336]
[1726702172507,0.817822,61363.0,61362.0,0.489336]
[1726702173807,0.814822,61363.0,61362.0,0.489336]
[1726702174625,0.325919,61365.0,61362.0,0.489336]
[1726702174846,0.162964,61363.0,61362.0,0.489336]
[1726702175095,0.1255741,61368.0,61362.0,0.489336]
[1726702175294,0.162962,61364.0,61362.0,0.484336]
[1726702175496,0.162964,61363.0,61362.0,0.484336]
[1726702175746,0.488893,61363.0,61362.0,0.484336]
[1726702175971,0.489893,61363.0,61362.0,0.484336]
[1726702176178,0.488893,61363.0,61362.0,0.484336]
[1726702176398,0.814822,61363.0,61362.0,0.484336]
[1726702177272,0.814822,61363.0,61362.0,0.488336]
[1726702177480,0.97790758,61363.0,61362.0,0.484336]
[1726702177925,0.814822,61363.0,61362.0,0.484336]
[1726702178128,0.488893,61363.0,61362.0,0.484336]
[1726702178572,0.21053263,61363.0,61362.0,0.484336]
[1726702178984,0.325916,61366.0,61362.0,0.484336]
[1726702179190,0.163788,61363.0,61362.0,0.484336]
[1726702179615,0.21135898,61363.0,61362.0,0.484336]
[1726702180037,0.04839498,61363.0,61362.0,0.484336]
[1726702180243,0.04839498,61363.0,61362.0,1.136204]
[1726702180447,0.04839498,61363.0,61362.0,0.975187]
[1726702180652,0.04839498,61363.0,61362.0,0.649253]
[1726702181065,0.04839498,61363.0,61362.0,0.975187]
[1726702181283,0.000824,61363.0,61362.0,0.990387]
[1726702181499,0.000824,61363.0,61362.0,0.664453]
[1726702181913,0.000824,61363.0,61362.0,0.469486]
[1726702182142,0.001824,61363.0,61362.0,0.475486]
[1726702183811,0.04940129,61363.0,61362.0,0.475486]
[1726702188771,0.04940129,61363.0,61362.0,0.470486]
[1726702191497,0.09827033,61363.0,61362.0,0.470486]
[1726702192575,0.12270485,61363.0,61362.0,0.470486]
[1726702193399,1.32405229,61363.0,61362.0,0.470486]
[1726702193618,1.48875229,61363.0,61362.0,0.470486]
[1726702194606,1.49544312,61363.0,61362.0,0.470486]
[1726702195598,1.49444312,61363.0,61362.0,0.464486]
[1726702195827,1.49544312,61363.0,61362.0,0.464486]
[1726702196056,1.5960711,61363.0,61362.0,0.464486]
[1726702197749,1.49544312,61363.0,61362.0,0.464486]
[1726702199390,1.64220171,61363.0,61362.0,0.464486]
[1726702199629,1.6423131,61363.0,61362.0,0.464486]
[1726702200568,1.64233475,61363.0,61362.0,0.464486]
[1726702200804,1.64233475,61363.0,61362.0,0.46283988]
[1726702201291,0.69187675,61363.0,61362.0,0.46283988]
[1726702202506,1.34273475,61363.0,61362.0,0.46283988]
[1726702202788,0.844915,61356.0,61350.0,0.0028]
[1726702203014,3.65855576,61356.0,61350.0,0.0028]
[1726702203282,3.80273513,61356.0,61355.0,5.48895]
[1726702203514,3.80273513,61356.0,61355.0,5.48885]
[1726702203515,3.00995535,61356.0,61355.0,5.48885]
[1726702203779,2.15569835,61356.0,61355.0,5.48885]
[1726702204099,0.33614251,61356.0,61355.0,5.48885]
[1726702204273,0.04757729,61356.0,61355.0,5.48885]
[1726702204544,0.56234279,61356.0,61355.0,5.48885]
[1726702204815,1.31194284,61356.0,61355.0,5.48885]
[1726702205040,1.41980386,61356.0,61355.0,5.48985]
[1726702205311,1.35938439,61356.0,61355.0,5.48885]
[1726702205555,1.35938439,61356.0,61355.0,5.48985]
[1726702205787,0.33276811,61356.0,61355.0,5.48985]
[1726702206018,0.162983,61356.0,61355.0,5.48885]
[1726702206255,0.5643329,61356.0,61355.0,5.48885]
[1726702206490,0.490949,61356.0,61355.0,5.48885]
[1726702206743,0.002,61356.0,61355.0,5.48885]
[1726702206978,0.002,61356.0,61355.0,0.48895]
[1726702207727,0.816915,61356.0,61355.0,0.48895]
[1726702208009,0.814915,61356.0,61355.0,0.48895]
[1726702208242,0.814915,61356.0,61355.0,0.48995]
[1726702208453,0.814915,61356.0,61355.0,0.48985]
[1726702208667,0.814915,61356.0,61355.0,0.48885]
[1726702208890,0.814915,61356.0,61355.0,0.49285]
[1726702209817,0.814915,61356.0,61355.0,0.49275]
[1726702210057,0.88829086,61356.0,61355.0,0.49275]
[1726702210775,0.56232486,61356.0,61355.0,0.49275]
[1726702211019,0.07337586,61357.0,61355.0,0.48875]
[1726702211239,0.162983,61356.0,61355.0,0.48875]
[1726702211474,0.23635886,61356.0,61355.0,0.48875]
[1726702211929,0.23835496,61356.0,61355.0,0.48875]
[1726702212154,0.07337196,61357.0,61355.0,0.48875]
[1726702212394,0.162983,61356.0,61355.0,0.48875]
[1726702212614,0.164983,61356.0,61355.0,0.48875]
[1726702212842,0.31024833,61356.0,61355.0,0.48875]
[1726702213087,0.04943605,61356.0,61355.0,0.48875]
[1726702214725,0.04943605,61356.0,61355.0,0.490398]
[1726702214930,0.21241905,61356.0,61355.0,0.490398]
[1726702215178,0.04743605,61356.0,61355.0,0.490398]
[1726702215374,0.12080275,61356.0,61355.0,0.490398]
[1726702215589,0.12180275,61356.0,61355.0,0.496398]
[1726702217202,0.28478575,61356.0,61355.0,0.496398]
[1726702217474,0.85520072,61356.0,61355.0,0.491398]
[1726702217708,0.85520072,61356.0,61355.0,0.49846682]
[1726702217709,2.06746882,61356.0,61355.0,0.49846682]
[1726702217942,2.20209925,61356.0,61355.0,0.49846682]
[1726702218203,2.20810433,61356.0,61355.0,0.49846682]
[1726702218453,2.37816617,61356.0,61355.0,0.485298]
[1726702218704,2.32451097,61356.0,61355.0,0.486298]
[1726702218958,2.31851097,61356.0,61355.0,0.485298]
[1726702219257,2.31851097,61356.0,61355.0,0.486198]
[1726702219258,2.67315905,61356.0,61355.0,0.486198]
[1726702219505,2.53841513,61356.0,61355.0,0.486198]
[1726702219755,2.87256255,61356.0,61355.0,0.486198]
[1726702219993,2.87056255,61356.0,61355.0,0.486198]
[1726702220231,2.87256255,61356.0,61355.0,0.486198]
[1726702220481,2.70947697,61356.0,61355.0,0.486198]
[1726702220714,2.73947697,61356.0,61355.0,0.486198]
[1726702220934,2.41151097,61356.0,61355.0,0.486198]
[1726702221608,2.41351097,61356.0,61355.0,0.486198]
[1726702221883,2.57659655,61356.0,61355.0,0.486198]
[1726702222570,2.57459655,61356.0,61355.0,0.486198]
[1726702224017,2.41151097,61356.0,61355.0,0.31652192]
[1726702224236,2.40151097,61356.0,61355.0,0.31652192]
[1726702225085,2.40151097,61356.0,61355.0,0.18613392]
[1726702225086,2.72747697,61356.0,61355.0,0.18613392]
[1726702225316,2.72747697,61356.0,61332.0,0.0039954]
[1726702225317,0.03,61343.0,61332.0,0.0039954]
[1726702225525,1.08628184,61333.0,61332.0,0.0039954]
[1726702225733,1.45981761,61333.0,61332.0,0.4931354]
[1726702225941,2.84776987,61333.0,61332.0,0.4931354]
[1726702226154,1.64555461,61333.0,61332.0,0.4931354]
[1726702226368,1.28875577,61333.0,61332.0,0.4931354]
[1726702226585,0.629142,61342.0,61332.0,0.4931354]
[1726702226586,0.07324873,61335.0,61332.0,0.5231354]
[1726702226802,0.02558987,61342.0,61333.0,0.03]
[1726702227026,0.07324873,61350.0,61341.0,0.20106184]
[1726702227027,0.014,61343.0,61341.0,0.20106184]
[1726702227239,0.014,61343.0,61334.0,0.62573]
[1726702227240,0.014,61343.0,61342.0,1.18244178]
[1726702227445,0.97819442,61347.0,61346.0,0.489028]
[1726702227668,0.97819442,61347.0,61346.0,1.14911984]
[1726702227872,0.000824,61356.0,61352.0,0.03]
[1726702228087,0.000824,61356.0,61353.0,0.48897]
[1726702228304,0.162989,61354.0,61353.0,0.48897]
[1726702228518,0.000824,61356.0,61353.0,0.48897]
[1726702228519,0.21263597,61356.0,61353.0,0.48897]
[1726702228729,0.163808,61356.0,61353.0,0.51897]
[1726702228938,0.000824,61356.0,61353.0,0.50997]
[1726702229363,0.162988,61354.0,61353.0,0.47997]
[1726702229637,0.488965,61354.0,61353.0,0.47997]
[1726702229854,0.000824,61356.0,61353.0,0.47987]
[1726702230069,0.002824,61356.0,61353.0,0.47987]
[1726702230500,0.000824,61356.0,61353.0,0.47987]
[1726702230737,0.000824,61356.0,61355.0,1.49715042]
[1726702230964,0.000824,61356.0,61355.0,1.344987]
[1726702231614,0.000824,61356.0,61355.0,0.691045]
[1726702231826,0.000824,61356.0,61355.0,0.52806]
[1726702232274,0.000824,61356.0,61355.0,0.693045]
[1726702232536,0.000824,61356.0,61355.0,0.691045]
[1726702232998,0.001824,61356.0,61355.0,1.028016]
[1726702234859,0.001824,61356.0,61355.0,1.030016]
[1726702235080,0.001824,61356.0,61355.0,1.355987]
[1726702235736,0.001824,61356.0,61355.0,1.028016]
[1726702236215,0.001824,61356.0,61355.0,0.702045]
[1726702236422,0.001824,61356.0,61355.0,1.028016]
[1726702237100,0.001824,61356.0,61355.0,1.03563564]
[1726702237315,0.001824,61356.0,61355.0,1.36160664]
[1726702238176,0.001824,61356.0,61355.0,1.03563564]
[1726702239088,0.000824,61356.0,61355.0,1.02463564]
[1726702239298,0.001824,61356.0,61355.0,1.02663564]
[1726702239483,0.000824,61356.0,61355.0,1.02463564]
[1726702239938,0.001824,61356.0,61355.0,1.02663564]
[1726702240143,0.001824,61356.0,61355.0,1.02463564]
[1726702240563,0.002824,61356.0,61355.0,1.02663564]
[1726702241237,0.002824,61356.0,61355.0,1.02863564]
[1726702241446,0.002824,61356.0,61355.0,1.02663564]
[1726702241875,0.002824,61356.0,61355.0,1.02863564]
[1726702242090,0.002824,61356.0,61355.0,1.35460664]
[1726702242308,0.002824,61356.0,61355.0,1.02663564]
[1726702242527,0.002824,61356.0,61355.0,1.35260664]
[1726702242736,0.002824,61356.0,61355.0,1.67857764]
[1726702243174,0.000824,61356.0,61355.0,1.67657764]
[1726702243633,0.001824,61356.0,61355.0,1.71126764]
[1726702243858,0.001824,61356.0,61355.0,1.38729664]
[1726702244070,0.001824,61356.0,61355.0,1.71326764]
[1726702244330,0.000824,61356.0,61355.0,1.71126764]
[1726702245068,0.000824,61356.0,61355.0,1.38529664]
[1726702245717,0.000824,61356.0,61355.0,1.38329664]
[1726702246185,0.000824,61356.0,61355.0,1.38729664]
[1726702246409,0.001824,61356.0,61355.0,1.38729664]
[1726702246620,0.001824,61356.0,61355.0,1.38529664]
[1726702246842,0.002824,61356.0,61355.0,1.38729664]
[1726702247051,0.000824,61356.0,61355.0,1.38529664]
[1726702247483,0.000824,61356.0,61355.0,1.38729664]
[1726702247484,0.001824,61356.0,61355.0,1.38729664]
[1726702247919,0.000824,61356.0,61355.0,1.38529664]
[1726702248150,0.001824,61356.0,61355.0,1.38729664]
[1726702249340,0.000824,61356.0,61355.0,1.38529664]
[1726702249555,0.000824,61356.0,61355.0,1.38329664]
[1726702249764,0.001824,61356.0,61355.0,1.38529664]
[1726702250225,0.001824,61356.0,61355.0,1.38729664]
[1726702251068,0.000824,61356.0,61355.0,1.38329664]
[1726702251253,0.001824,61356.0,61355.0,1.38529664]
[1726702252603,0.000824,61356.0,61355.0,1.38529664]
[1726702252826,0.001824,61356.0,61355.0,1.38729664]
[1726702253281,0.000824,61356.0,61355.0,1.38329664]
[1726702253491,0.001824,61356.0,61355.0,1.38529664]
[1726702253724,0.001824,61356.0,61355.0,1.38729664]
[1726702255446,0.001824,61356.0,61355.0,1.71326764]
[1726702255667,0.001824,61356.0,61355.0,1.38729664]
[1726702256096,0.001824,61356.0,61355.0,1.38629664]
[1726702256314,0.001824,61356.0,61355.0,1.38529664]
[1726702260789,0.264807,61356.0,61355.0,0.50767964]
[1726702261065,0.9762997,61356.0,61355.0,0.50767964]
[1726702261275,1.3022657,61356.0,61355.0,0.50006]
[1726702261486,1.242705,61356.0,61355.0,0.50006]
[1726702262847,1.241705,61356.0,61355.0,0.49806]
[1726702263069,1.241705,61356.0,61355.0,1.017016]
[1726702263070,0.000824,61356.0,61355.0,1.017016]
[1726702263512,0.000824,61356.0,61355.0,1.019016]
[1726702263727,0.000824,61356.0,61355.0,1.344987]
[1726702263965,0.000824,61356.0,61355.0,1.346987]
[1726702263966,0.001824,61356.0,61355.0,1.346987]
[1726702264182,0.000824,61356.0,61355.0,1.344987]
[1726702264617,0.001824,61356.0,61355.0,1.346987]
[1726702265062,0.001824,61356.0,61355.0,1.705648]
[1726702265325,0.000824,61363.0,61362.0,0.816835]
[1726702265596,0.000824,61363.0,61362.0,1.81186281]
[1726702266312,0.000824,61363.0,61362.0,1.80986281]
[1726702266800,0.001824,61363.0,61362.0,1.81186281]
[1726702267038,0.000824,61363.0,61362.0,1.84455281]
[1726702267467,0.001824,61363.0,61362.0,1.84655281]
[1726702267684,0.000824,61363.0,61362.0,1.84455281]
[1726702268405,0.000824,61363.0,61362.0,1.68158581]
[1726702268628,0.000824,61363.0,61362.0,1.84455281]
[1726702269048,0.001824,61363.0,61362.0,1.84855281]
[1726702269293,0.001824,61363.0,61362.0,1.84455281]
[1726702269294,0.000824,61363.0,61362.0,1.84455281]
[1726702269765,0.02557079,61378.0,61377.0,1.170489]
[1726702269983,0.24447686,61381.0,61380.0,0.518753]
[1726702270196,0.24447686,61381.0,61380.0,1.54823581]
[1726702270411,0.24447686,61390.0,61382.0,0.001]
[1726702270628,0.24447686,61390.0,61387.0,0.17109381]
[1726702270854,0.24447686,61390.0,61383.0,0.49783]
[1726702270855,0.359524,61391.0,61390.0,0.03]
[1726702271070,0.359524,61391.0,61390.0,0.52778]
[1726702273063,0.522414,61391.0,61390.0,0.52778]
[1726702273285,0.359524,61391.0,61390.0,0.690672]
[1726702273503,0.359524,61391.0,61390.0,0.696672]
[1726702273968,0.359524,61391.0,61390.0,1.022457]
[1726702274231,0.359524,61391.0,61390.0,1.016457]
[1726702274452,0.359524,61391.0,61390.0,1.024457]
[1726702274874,0.359524,61391.0,61390.0,0.53578]
[1726702275714,0.522414,61391.0,61390.0,0.53578]
[1726702275929,0.359524,61391.0,61390.0,0.52778]
[1726702276167,0.359524,61391.0,61390.0,0.53978]
[1726702276168,0.360524,61391.0,61390.0,0.53978]
[1726702277024,0.359524,61391.0,61390.0,0.52778]
[1726702277244,0.359524,61391.0,61390.0,0.53378]
[1726702277662,0.359524,61391.0,61390.0,1.016457]
[1726702277880,0.359524,61391.0,61390.0,1.18755081]
[1726702278087,0.359524,61391.0,61390.0,1.19655081]
[1726702278088,0.360524,61391.0,61390.0,1.19655081]
[1726702278296,0.360524,61391.0,61390.0,1.52433581]
[1726702278964,0.360524,61391.0,61390.0,1.52233581]
[1726702279252,0.360524,61391.0,61390.0,1.84812081]
[1726702279478,0.359524,61391.0,61390.0,1.51333581]
[1726702279696,0.360524,61391.0,61390.0,1.52233581]
[1726702279916,0.360524,61391.0,61390.0,1.52433581]
[1726702280140,0.359524,61391.0,61390.0,1.84112081]
[1726702280365,0.360524,61391.0,61390.0,1.52533581]
[1726702280558,0.359524,61391.0,61390.0,1.84112081]
[1726702281038,0.360524,61391.0,61390.0,2.02541081]
[1726702282386,0.359524,61391.0,61390.0,2.01341081]
[1726702282815,0.360524,61391.0,61390.0,2.02741081]
[1726702283056,0.359524,61391.0,61390.0,2.01341081]
[1726702283269,0.359524,61391.0,61390.0,1.56002581]
[1726702283476,0.360524,61391.0,61390.0,1.56002581]
[1726702283688,0.359524,61391.0,61390.0,1.54602581]
[1726702283917,0.360524,61391.0,61390.0,1.56002581]
[1726702284135,0.360524,61391.0,61390.0,0.56047]
[1726702284391,0.523414,61391.0,61390.0,0.56047]
[1726702284613,0.849194,61391.0,61390.0,0.56047]
[1726702285048,0.523414,61391.0,61390.0,0.56047]
[1726702285269,0.849194,61391.0,61390.0,0.56047]
[1726702285510,0.849194,61391.0,61390.0,0.49778]
[1726702285511,2.32934652,61391.0,61390.0,0.49778]
[1726702285723,2.44734652,61391.0,61390.0,0.49778]
[1726702285949,2.79868971,61391.0,61390.0,0.49778]
[1726702286172,1.657554,61391.0,61390.0,0.51178]
[1726702286393,1.657554,61391.0,61390.0,0.49778]
[1726702286394,1.599754,61391.0,61390.0,0.49778]
[1726702286617,0.948194,61391.0,61390.0,0.49778]
[1726702286827,0.622414,61391.0,61390.0,0.50578]
[1726702287045,0.622414,61391.0,61390.0,0.49778]
[1726702287046,0.948194,61391.0,61390.0,0.49778]
[1726702287477,0.359524,61391.0,61390.0,0.52778]
[1726702287692,0.359524,61391.0,61390.0,0.53501977]
[1726702287693,0.522414,61391.0,61390.0,0.53501977]
[1726702287916,0.522414,61391.0,61390.0,0.53849608]
[1726702288143,0.848194,61391.0,61390.0,0.53503573]
[1726702288359,1.499754,61391.0,61390.0,0.50503573]
[1726702289228,1.499754,61391.0,61390.0,0.51303573]
[1726702289462,1.19953949,61391.0,61390.0,0.50503573]
[1726702289671,1.20053949,61391.0,61390.0,0.50503573]
[1726702289884,1.52631949,61391.0,61390.0,0.50503573]
[1726702290093,1.52631949,61391.0,61390.0,0.50493573]
[1726702290304,1.52631949,61391.0,61390.0,0.49768]
[1726702290519,1.52531949,61391.0,61390.0,0.49768]
[1726702290756,1.52631949,61391.0,61390.0,0.49768]
[1726702291197,1.52531949,61391.0,61390.0,0.49758]
[1726702292934,1.52631949,61391.0,61390.0,0.49758]
[1726702293358,1.52531949,61391.0,61390.0,0.49758]
[1726702293569,1.52631949,61391.0,61390.0,0.49758]
[1726702293789,1.95209949,61391.0,61390.0,0.49758]
[1726702294001,2.05954787,61391.0,61390.0,0.49758]
[1726702294216,1.95209949,61391.0,61390.0,0.49758]
[1726702294933,1.62631949,61391.0,61390.0,0.49758]
[1726702295587,1.30053949,61391.0,61390.0,0.49758]
[1726702296017,1.600754,61391.0,61390.0,0.49758]
[1726702296229,1.600754,61391.0,61390.0,0.49748]
[1726702296438,1.599754,61391.0,61390.0,0.49748]
[1726702296859,1.600754,61391.0,61390.0,0.49748]
[1726702297278,1.64799694,61391.0,61390.0,0.49748]
[1726702297484,1.64899694,61391.0,61390.0,0.49748]
[1726702299359,1.97477694,61391.0,61390.0,0.49748]
[1726702299580,2.89671137,61391.0,61390.0,0.49748]
[1726702299853,3.08766863,61391.0,61390.0,0.49738]
[1726702300061,1.140566,61373.0,61372.0,0.24433748]
[1726702300528,1.140566,61373.0,61372.0,0.48882]
[1726702300745,2.62503979,61373.0,61372.0,0.48872]
[1726702301181,2.97391579,61373.0,61372.0,0.48872]
[1726702301403,2.69530364,61373.0,61372.0,0.48862]
[1726702301614,2.37695964,61373.0,61372.0,0.48862]
[1726702301833,2.37695964,61373.0,61372.0,0.49362]
[1726702302578,2.37895964,61373.0,61372.0,0.49362]
[1726702302791,2.37895964,61373.0,61372.0,0.30702]
[1726702302792,2.84811488,61373.0,61372.0,0.30702]